fUST/lending_fUST_20251228
["ID","MTS","AMOUNT","RATE_DAILY","PERIOD"]
[399944751,1766917050721,200.0,0.0002691,120]
[399944752,1766917086862,151.53,0.00012,2]
[399944753,1766917147243,151.56,0.00012,2]
[399944754,1766917205623,196.0,0.00026216,120]
[399944755,1766917206354,151.53,0.00012,2]
[399944756,1766917206897,196.0,0.00027527,120]
[399944757,1766917208220,196.0,0.00028903,120]
[399944758,1766917229836,171.0,0.00026235,120]
[399944759,1766917231282,171.0,0.00027547,120]
[399944760,1766917232571,171.0,0.00028924,120]
[399944761,1766917264611,151.56,0.00012,2]
[399944762,1766917325745,151.53,0.00012,2]
[399944763,1766917345430,183.0,0.00026332,120]
[399944764,1766917384698,151.56,0.00012,2]
[399944768,1766917446635,151.53,0.00012,2]
[399944769,1766917474272,-795.66561116,0.00014454,2]
[399944770,1766917474661,150.0,6.152e-05,2]
[399944771,1766917475089,150.0,6.445e-05,2]
[399944772,1766917475976,150.0,6.738e-05,2]
[399944773,1766917476383,150.0,7.031e-05,2]
[399944774,1766917504203,219.59,0.00012,2]
[399944775,1766917504505,219.59,0.000124,2]
[399944776,1766917504807,219.59,0.000127,2]
[399944777,1766917505256,219.59,0.000131,2]
[399944778,1766917509264,168.0,0.00026342,120]
[399944779,1766917510726,168.0,0.00027659,120]
[399944780,1766917511969,168.0,0.00029042,120]
[399944781,1766917541189,150.0,6.007e-05,2]
[399944782,1766917541448,150.0,6.293e-05,2]
[399944783,1766917541900,150.0,6.579e-05,2]
[399944785,1766917579103,171.65,0.00012,2]
[399944786,1766917583889,1522.63632683,0.00012,2]
[399944787,1766917621526,503.29516151,0.00027,120]
[399944788,1766917625537,205.46,0.00012,2]
[399944789,1766917625876,205.46,0.000124,2]
[399944790,1766917626197,205.46,0.000127,2]
[399944791,1766917626554,205.46,0.000131,2]
[399944792,1766917660233,5000.0,0.00013172,2]
[399944793,1766917668568,706.0,0.00030137,120]
[399944794,1766917668749,2483.88367317,0.00013172,2]
[399944795,1766917668772,2516.11632683,0.00013172,2]
[399944798,1766917684747,1293.84662661,0.00013172,2]
[399944799,1766917693305,5000.0,0.00013172,2]
[399944802,1766917700874,152.72,0.00012,2]
[399944803,1766917708215,218.02819393,0.00025,120]
[399944804,1766917708570,153.3,0.0001,2]
[399944805,1766917710296,307.22582306,0.0003,120]
[399944806,1766917710947,153.3,0.000102,2]
[399944808,1766917713305,343.28293793,0.0003,120]
[399944809,1766917713346,153.3,0.000104,2]
[399944810,1766917714688,228.20113178,0.0001536,120]
[399944811,1766917715208,385.66223314,0.0003,120]
[399944812,1766917715586,160.80055141,0.0002739,120]
[399944813,1766917715642,308.15417605,0.000295,120]
[399944814,1766917715759,153.3,0.000106,2]
[399944815,1766917718066,424.12704656,0.00013172,2]
[399944816,1766917718088,4575.87295344,0.00013172,2]
[399944817,1766917718150,153.3,0.000108,2]
[399944818,1766917720005,200.0,0.000245,120]
[399944820,1766917720620,210.94730344,0.0003,120]
[399944821,1766917721046,274.28077986,0.00025847,120]
[399944822,1766917722299,359.38464979,0.0003,120]
[399944823,1766917735184,150.0,6.11e-05,2]
[399944824,1766917735802,150.0,6.401e-05,2]
[399944825,1766917735971,199.94,6.692e-05,2]
[399944826,1766917736375,266.59,6.983e-05,2]
[399944827,1766917736848,333.24,7.274e-05,2]
[399944828,1766917737291,399.89,7.565e-05,2]
[399944829,1766917737685,466.54,7.856e-05,2]
[399944830,1766917738170,533.18,8.147e-05,2]
[399944831,1766917738716,599.83,8.438e-05,2]
[399944832,1766917739082,666.48,8.729e-05,2]
[399944833,1766917742202,407.49557851,0.00013172,2]
[399944834,1766917746625,192.08,0.00012,2]
[399944835,1766917746970,192.08,0.000124,2]
[399944836,1766917747085,-249.95610481,0.00013273,2]
[399944837,1766917747106,-207.8283571,0.00013532,2]
[399944838,1766917747127,-300.0,0.00013673,2]
[399944839,1766917747148,-300.0,0.00013697,2]
[399944840,1766917747173,-500.0,0.00013698,2]
[399944841,1766917747195,-335.81348983,0.00013698,2]
[399944842,1766917747216,-260.89368085,0.00013698,2]
[399944843,1766917747235,-300.0,0.00013698,2]
[399944844,1766917747255,-1200.0,0.00013698,2]
[399944845,1766917747274,-1265.22648319,0.00013699,2]
[399944846,1766917747442,192.08,0.000127,2]
[399944847,1766917747786,192.08,0.000131,2]
[399944848,1766917776881,200.0,0.0003,120]
[399944849,1766917801464,518.0,0.0003,120]
[399944850,1766917805635,173.0,0.00029003,120]
[399944851,1766917809863,150.0,5.96e-05,2]
[399944852,1766917810260,150.0,6.244e-05,2]
[399944853,1766917810685,29.33146805,6.528e-05,2]
[399944854,1766917810713,120.66853195,6.528e-05,2]
[399944855,1766917811136,150.0,6.811e-05,2]
[399944856,1766917811600,180.15,7.095e-05,2]
[399944857,1766917812021,216.19,7.379e-05,2]
[399944858,1766917812467,252.22,7.663e-05,2]
[399944859,1766917812901,288.25,7.947e-05,2]
[399944860,1766917813384,324.28,8.23e-05,2]
[399944861,1766917813845,360.31,8.514e-05,2]
[399944862,1766917819123,153.02,0.00012,2]
[399944888,1766917834264,3872.02502428,0.00013172,2]
[399944978,1766917840195,-153.02,0.000133,2]
[399944980,1766917840204,-324.4197096,0.00013365,2]
[399944986,1766917840251,-994.88026612,0.00013365,2]
[399944988,1766917840261,-610.0,0.00013365,2]
[399944990,1766917840271,-169.02258014,0.00013519,2]
[399944992,1766917840281,-300.0,0.00013673,2]
[399944994,1766917840291,-300.0,0.00013698,2]
[399944997,1766917840301,-300.0,0.00013698,2]
[399944999,1766917840311,-300.0,0.00013698,2]
[399945001,1766917840320,-1200.0,0.00013698,2]
[399945003,1766917840330,-15169.77221228,0.00013699,2]
[399945005,1766917840339,-501.79050549,0.00013699,2]
[399945007,1766917840349,-500.0,0.00013699,2]
[399945009,1766917840358,-500.0,0.00013699,2]
[399945010,1766917840367,-500.0,0.00013699,2]
[399945011,1766917840375,-500.0,0.00013699,2]
[399945012,1766917840384,-500.0,0.00013699,2]
[399945013,1766917840393,-500.0,0.00013699,2]
[399945014,1766917840403,-326.3537074,0.00014145,2]
[399945015,1766917840419,-601.48457432,0.00014246,2]
[399945016,1766917840432,-298.76164339,0.00014246,2]
[399945017,1766917840441,-500.0,0.00014246,2]
[399945018,1766917840450,-500.0,0.00014246,2]
[399945019,1766917840459,-500.0,0.00014246,2]
[399945020,1766917840468,-500.0,0.00014246,2]
[399945021,1766917840477,-500.0,0.00014246,2]
[399945022,1766917840486,-500.0,0.00014246,2]
[399945024,1766917840496,-500.0,0.00014246,2]
[399945025,1766917840506,-500.0,0.00014246,2]
[399945026,1766917840515,-500.0,0.00014246,2]
[399945027,1766917840525,-500.0,0.00014246,2]
[399945028,1766917840534,-500.0,0.00014246,2]
[399945029,1766917840543,-500.0,0.00014246,2]
[399945030,1766917840552,-500.0,0.00014246,2]
[399945031,1766917840561,-500.0,0.00014246,2]
[399945032,1766917840571,-500.0,0.00014246,2]
[399945033,1766917840581,-500.0,0.00014246,2]
[399945034,1766917840591,-449.07615632,0.00014246,2]
[399945035,1766917840601,-500.0,0.00014246,2]
[399945036,1766917840610,-500.0,0.00014246,2]
[399945037,1766917840620,-500.0,0.00014246,2]
[399945038,1766917840629,-500.0,0.00014246,2]
[399945039,1766917840639,-500.0,0.00014246,2]
[399945040,1766917840648,-1002.36383556,0.00014247,2]
[399945041,1766917840658,-1135.30832269,0.00014247,2]
[399945042,1766917840668,-1000.0,0.00014247,2]
[399945043,1766917840677,-1001.28240001,0.00014247,2]
[399945044,1766917840686,-1005.60783689,0.00014247,2]
[399945045,1766917840698,-1000.0,0.00014247,2]
[399945046,1766917840708,-153.02,0.000146,2]
[399945047,1766917840717,-1000.0,0.00015,2]
[399945048,1766917840727,-207.8283571,0.00015291,2]
[399945049,1766917840736,-199.44664457,0.00015519,2]
[399945050,1766917840745,-529.9142066,0.00015882,2]
[399945051,1766917840754,-153.02,0.000159,2]
[399945052,1766917840763,-326.35370733,0.00016896,2]
[399945053,1766917840772,-207.8283571,0.00017049,2]
[399945054,1766917840781,-153.02,0.000172,2]
[399945055,1766917840790,-229.870709,0.00017519,2]
[399945056,1766917840799,-153.02,0.000185,2]
[399945057,1766917840808,-207.8283571,0.00018808,2]
[399945058,1766917840817,-582.24197838,0.00019178,2]
[399945059,1766917840827,-260.29477342,0.00019519,2]
[399945060,1766917840836,-600.0,0.00019562,2]
[399945061,1766917840845,-326.35370733,0.00019646,2]
[399945062,1766917840854,-153.02,0.000198,2]
[399945063,1766917840863,-178.74404091,0.0002,2]
[399945064,1766917840872,-3509.10711727,0.0002,2]
[399945065,1766917840881,-1081.54874288,0.0002,2]
[399945066,1766917840890,-250.30699015,0.0002,2]
[399945067,1766917840900,-500.0,0.00020273,7]
[399945068,1766917840909,-4471.0,0.00020465,2]
[399945069,1766917840917,-150.0,0.000211,10]
[399945070,1766917840926,-153.02,0.000211,2]
[399945071,1766917840936,-1801.01802229,0.00021378,2]
[399945072,1766917840944,-213.7840684,0.00021462,2]
[399945073,1766917840955,-720.0,0.00021518,10]
[399945074,1766917840964,-290.71883785,0.00021519,2]
[399945075,1766917840975,-429.25102065,0.0002172,2]
[399945076,1766917840987,-3952.92183808,0.00021741,2]
[399945077,1766917840997,-2000.0,0.00021759,3]
[399945078,1766917841007,-2000.0,0.00021767,3]
[399945079,1766917841017,-2000.0,0.00021776,3]
[399945080,1766917841026,-2000.0,0.00021785,3]
[399945081,1766917841037,-2000.0,0.00021794,3]
[399945082,1766917841047,-151.0,0.000218,4]
[399945083,1766917841056,-151.0,0.000218,3]
[399945084,1766917841065,-2000.0,0.00021803,3]
[399945085,1766917841075,-294.49780382,0.00021804,2]
[399945086,1766917841086,-478.75725327,0.00021804,2]
[399945087,1766917841097,-500.0,0.00021804,2]
[399945088,1766917841106,-500.0,0.00021804,2]
[399945089,1766917841115,-500.0,0.00021804,2]
[399945090,1766917841128,-500.0,0.00021804,2]
[399945091,1766917841138,-1000.0,0.00021804,2]
[399945092,1766917841149,-500.0,0.00021804,2]
[399945093,1766917841158,-1070.96377559,0.00021804,2]
[399945094,1766917841168,-500.0,0.00021804,2]
[399945095,1766917841178,-500.0,0.00021804,2]
[399945096,1766917841188,-500.0,0.00021804,2]
[399945097,1766917841198,-500.0,0.00021804,2]
[399945098,1766917841208,-552.37174893,0.00021804,2]
[399945099,1766917841217,-759.03,0.00021807,10]
[399945100,1766917841226,-2000.0,0.00021811,3]
[399945101,1766917841238,-1093.36208167,0.00021817,2]
[399945102,1766917842003,-334.11312583,0.00021817,2]
[399945115,1766917844531,-1041.66666667,0.00019275,2]
[399945116,1766917844542,-632.52,0.00021807,10]
[399945117,1766917844554,-340912.78233678,0.00021817,2]
[399945123,1766917847488,-14465.5141023,0.00021817,2]
[399945124,1766917882251,150.0,6.278e-05,2]
[399945125,1766917882723,150.0,6.577e-05,2]
[399945126,1766917883199,150.0,6.875e-05,2]
[399945127,1766917883701,150.0,7.174e-05,2]
[399945128,1766917884144,150.0,7.473e-05,2]
[399945129,1766917884562,150.0,7.772e-05,2]
[399945130,1766917885049,150.0,8.071e-05,2]
[399945131,1766917885514,156.87,8.37e-05,2]
[399945132,1766917885957,176.47,8.669e-05,2]
[399945133,1766917886397,157.30692299,8.968e-05,2]
[399945134,1766917891280,153.13,0.0001,2]
[399945135,1766917893690,153.13,0.000102,2]
[399945136,1766917896110,153.13,0.000104,2]
[399945137,1766917898507,153.13,0.000106,2]
[399945138,1766917900879,153.13,0.000108,2]
[399945139,1766917951024,150.0,6.207e-05,2]
[399945140,1766917951422,150.0,6.502e-05,2]
[399945141,1766917951855,150.0,6.798e-05,2]
[399945142,1766918016199,150.0,6.376e-05,2]
[399945143,1766918016581,150.0,6.679e-05,2]
[399945144,1766918017010,150.0,6.983e-05,2]
[399945145,1766918081270,150.0,0.00010744,2]
[399945146,1766918108754,167.0,0.00022207,120]
[399945147,1766918110271,167.0,0.00023317,120]
[399945148,1766918111922,167.0,0.00024483,120]
[399945149,1766918113209,167.0,0.00025707,120]
[399945150,1766918114581,167.0,0.00026992,120]
[399945151,1766918115901,167.0,0.00028342,120]
[399945152,1766918117263,167.0,0.00029759,120]
[399945153,1766918130986,258.0,0.00022219,120]
[399945154,1766918143575,171.607459,0.00013244,61]
[399945155,1766918143787,171.607459,0.00013244,120]
[399945156,1766918211283,20923.55826382,0.00030136,120]
[399945157,1766918246338,5000.0,0.00013172,2]
[399945158,1766918271133,1519.70974571,0.00013172,2]
[399945159,1766918274064,150.0,0.00010708,2]
[399945160,1766918274974,150.0,0.00011218,2]
[399945161,1766918275396,205.61,0.00011727,2]
[399945162,1766918275850,274.14,0.00012237,2]
[399945163,1766918276346,342.68,0.00012747,2]
[399945164,1766918287673,4042.0705424,0.00013172,2]
[399945165,1766918295710,168.79,0.00013172,2]
[399945166,1766918352133,150.0,6.356e-05,2]
[399945167,1766918352532,194.95,6.659e-05,2]
[399945168,1766918352935,292.43,6.961e-05,2]
[399945169,1766918353381,389.9,7.264e-05,2]
[399945170,1766918353834,487.38,7.567e-05,2]
[399945171,1766918354257,584.85,7.869e-05,2]
[399945172,1766918354727,682.33,8.172e-05,2]
[399945173,1766918355156,365.16971189,8.475e-05,2]
[399945174,1766918355180,414.63028811,8.475e-05,2]
[399945175,1766918355791,877.28,8.777e-05,2]
[399945176,1766918356227,974.76,9.08e-05,2]
[399945177,1766918360948,388.50698741,0.00030137,120]
[399945178,1766918365293,3873.2705424,0.00013172,2]
[399945179,1766918389278,3860.06916949,0.00013172,2]
[399945180,1766918389303,1139.93083051,0.00013172,2]
[399945181,1766918408866,169.0,0.00022651,120]
[399945182,1766918410462,169.0,0.00023784,120]
[399945183,1766918411782,169.0,0.00024973,120]
[399945184,1766918412627,5000.0,0.00013172,2]
[399945186,1766918427180,150.0,8.846e-05,2]
[399945187,1766918427684,150.0,9.267e-05,2]
[399945188,1766918428153,150.0,9.688e-05,2]
[399945189,1766918428566,197.82,0.00010109,2]
[399945190,1766918429458,247.27,0.00010531,2]
[399945191,1766918429891,296.73,0.00010952,2]
[399945192,1766918430517,346.18,0.00011373,2]
[399945193,1766918430734,395.64,0.00011794,2]
[399945194,1766918431140,445.09,0.00012216,2]
[399945195,1766918431580,494.55,0.00012637,2]
[399945196,1766918436664,986.79916949,0.00013172,2]
[399945197,1766918436688,3339.94028811,0.00013172,2]
[399945198,1766918501012,150.0,6.341e-05,2]
[399945199,1766918501455,150.0,6.643e-05,2]
[399945200,1766918501925,150.0,6.945e-05,2]
[399945201,1766918502354,150.0,7.247e-05,2]
[399945202,1766918502831,156.57,7.549e-05,2]
[399945203,1766918503280,187.88,7.851e-05,2]
[399945204,1766918503696,219.19,8.152e-05,2]
[399945205,1766918504144,250.5,8.454e-05,2]
[399945206,1766918504548,281.82,8.756e-05,2]
[399945207,1766918505014,313.13,9.058e-05,2]
[399945208,1766918507913,5000.0,0.00013172,2]
[399945209,1766918572670,150.0,6.431e-05,2]
[399945210,1766918573146,150.0,6.738e-05,2]
[399945211,1766918573609,150.0,7.044e-05,2]
[399945212,1766918608867,221.95,0.0001,2]
[399945213,1766918611302,221.95,0.000102,2]
[399945214,1766918613747,221.95,0.000104,2]
[399945215,1766918616149,221.95,0.000106,2]
[399945216,1766918618519,221.95,0.000108,2]
[399945217,1766918621027,221.95,0.00011,2]
[399945218,1766918623478,1209.22,0.00013172,2]
[399945219,1766918623501,3790.78,0.00013172,2]
[399945221,1766918803127,-172.55264158,0.00013244,2]
[399945222,1766918839606,-314.75371344,0.00013244,2]
[399945223,1766918846051,-120.69364498,0.00013244,2]
[399945224,1766918846072,-150.87555548,0.00013244,2]
[399945225,1766918846095,-30.20087974,0.00013244,2]
[399945226,1766918910540,453.804436,0.00030137,120]
[399945227,1766918954076,-141.40657926,0.00013244,2]
[399945228,1766918954096,-552.33065236,0.00013698,2]
[399945229,1766918954115,-484.203845,0.00013699,2]
[399945230,1766918954134,-150.0,0.00013699,2]
[399945231,1766918954154,-278.07572478,0.00013995,2]
[399945232,1766918954176,-500.0,0.00014094,2]
[399945233,1766918954197,-500.0,0.00014094,2]
[399945234,1766918954216,-500.0,0.00014094,2]
[399945235,1766918954241,-500.0,0.00014094,2]
[399945236,1766918954263,-500.0,0.00014094,2]
[399945237,1766918954286,-500.0,0.00014094,2]
[399945238,1766918954306,-313.70131438,0.00014094,2]
[399945261,1766919032056,-169.65965058,0.00013273,2]
[399945263,1766919032066,-608.0,0.00013273,2]
[399945265,1766919032076,-300.0,0.00014093,2]
[399945267,1766919032085,-300.0,0.00014093,2]
[399945269,1766919032094,-290.11658872,0.00014093,2]
[399945273,1766919032120,-500.0,0.00014093,2]
[399945275,1766919032130,-398.60370125,0.00014093,2]
[399945277,1766919032139,-909.88341128,0.00014093,2]
[399945279,1766919032149,-300.0,0.00014093,2]
[399945281,1766919032159,-186.29868562,0.00014094,2]
[399945283,1766919032167,-500.0,0.00014094,2]
[399945285,1766919032176,-571.11858461,0.00014094,2]
[399945287,1766919032186,-449.24670841,0.00014094,2]
[399945308,1766919032342,-500.0,0.00014094,2]
[399945311,1766919032392,-500.0,0.00014094,2]
[399945313,1766919032402,-500.0,0.00014094,2]
[399945314,1766919032412,-500.0,0.00014094,2]
[399945315,1766919032421,-500.0,0.00014094,2]
[399945316,1766919032430,-142.23614457,0.00014094,2]
[399945317,1766919032441,-357.76385543,0.00014094,2]
[399945318,1766919032451,-370.21296465,0.00014094,2]
[399945319,1766919032481,-500.0,0.00014093,2]
[399945320,1766919032490,-129.78703535,0.00014094,2]
[399945321,1766919032499,-479.4579352,0.00014094,2]
[399945322,1766919032508,-500.0,0.00014094,2]
[399945323,1766919032517,-500.0,0.00014094,2]
[399945324,1766919032526,-500.0,0.00014094,2]
[399945325,1766919032535,-500.0,0.00014094,2]
[399945326,1766919032544,-400.74310467,0.00014094,2]
[399945327,1766919032553,-500.0,0.00014094,2]
[399945328,1766919032562,-500.0,0.00014094,2]
[399945329,1766919032571,-500.0,0.00014094,2]
[399945330,1766919032580,-10984.07406547,0.00014094,2]
[399945331,1766919032589,-300.0,0.00014094,2]
[399945332,1766919032598,-1200.0,0.00014094,2]
[399945333,1766919032607,-500.0,0.00014099,2]
[399945334,1766919032616,-291.67523452,0.00014247,2]
[399945335,1766919032626,-178.03315546,0.00015244,2]
[399945336,1766919032637,-420.0,0.00015438,2]
[399945337,1766919032647,-1200.0,0.00015439,2]
[399945338,1766919032656,-1200.0,0.00015502,2]
[399945339,1766919032665,-252.0,0.00015503,2]
[399945340,1766919032676,-174.10388661,0.00016524,2]
[399945341,1766919032684,-478.75725327,0.00016624,2]
[399945342,1766919032694,-1000.0,0.00016624,2]
[399945343,1766919032703,-1000.0,0.00016624,2]
[399945344,1766919032713,-1000.0,0.00016624,2]
[399945345,1766919032722,-1000.0,0.00016624,2]
[399945346,1766919032731,-1000.0,0.00016624,2]
[399945347,1766919032740,-1000.0,0.00016624,2]
[399945348,1766919032750,-1000.0,0.00016624,2]
[399945349,1766919032759,-1000.0,0.00016624,2]
[399945350,1766919032768,-1000.0,0.00016624,2]
[399945351,1766919032777,-1000.0,0.00016624,2]
[399945352,1766919032786,-1000.0,0.00016624,2]
[399945353,1766919032795,-1000.0,0.00016624,2]
[399945354,1766919032804,-1000.0,0.00016624,2]
[399945355,1766919032813,-1000.0,0.00016624,2]
[399945356,1766919032823,-1000.0,0.00016624,2]
[399945357,1766919032832,-1000.0,0.00016624,2]
[399945358,1766919032842,-1000.0,0.00016624,2]
[399945359,1766919032851,-1000.0,0.00016624,2]
[399945360,1766919032861,-1000.0,0.00016624,2]
[399945361,1766919032870,-689.75714346,0.00016624,2]
[399945362,1766919032879,-278.07572473,0.00016731,2]
[399945363,1766919032888,-1041.66666667,0.00016786,2]
[399945364,1766919032897,-577.0,0.00016912,2]
[399945365,1766919032907,-205.19075545,0.00017244,2]
[399945366,1766919032916,-174.10388661,0.0001825,2]
[399945367,1766919032926,-232.34835544,0.00019244,2]
[399945368,1766919032935,-278.07572473,0.00019466,2]
[399945369,1766919032946,-174.10388661,0.00019977,2]
[399945370,1766919032955,-484.203845,0.00020187,2]
[399945371,1766919032964,-500.0,0.00020273,7]
[399945372,1766919032973,-4471.0,0.00020615,2]
[399945373,1766919032982,-259.50595542,0.00021244,2]
[399945374,1766919032991,-213.78406841,0.00021462,2]
[399945375,1766919033001,-320.8612268,0.00021687,2]
[399945376,1766919033011,-151.0,0.000217,3]
[399945377,1766919033020,-174.10388661,0.00021703,2]
[399945378,1766919033030,-402.90196476,0.00021703,2]
[399945379,1766919033039,-181.703,0.00021803,2]
[399945380,1766919033048,-183.095,0.00021803,2]
[399945381,1766919033057,-2000.0,0.0002182,3]
[399945382,1766919033067,-2000.0,0.00021829,3]
[399945383,1766919033076,-2000.0,0.00021838,3]
[399945384,1766919033086,-2000.0,0.00021847,3]
[399945385,1766919033097,-2000.0,0.00021855,3]
[399945386,1766919033107,-2000.0,0.00021864,3]
[399945387,1766919033116,-2000.0,0.00021864,3]
[399945388,1766919033125,-2000.0,0.00021873,3]
[399945389,1766919033135,-2000.0,0.00021873,3]
[399945390,1766919033144,-2000.0,0.00021882,3]
[399945391,1766919033154,-2000.0,0.00021882,3]
[399945392,1766919033163,-439.25,0.00021889,10]
[399945393,1766919033172,-2000.0,0.00021891,3]
[399945394,1766919033181,-2000.0,0.00021891,3]
[399945395,1766919033191,-152.304879,0.00021891,2]
[399945396,1766919033200,-2000.0,0.00021899,3]
[399945397,1766919033210,-2000.0,0.00021899,3]
[399945398,1766919033219,-151.94,0.000219,2]
[399945399,1766919033230,-2000.0,0.00021908,3]
[399945400,1766919033240,-2000.0,0.00021908,3]
[399945401,1766919033249,-268.3035,0.00021916,3]
[399945402,1766919033259,-2000.0,0.00021917,3]
[399945403,1766919033268,-2000.0,0.00021917,3]
[399945404,1766919033279,-2000.0,0.00021917,3]
[399945405,1766919033288,-2000.0,0.00021917,3]
[399945406,1766919033298,-151.0,0.00021917,2]
[399945407,1766919033308,-2000.0,0.00021917,3]
[399945408,1766919033317,-225.0,0.00021918,6]
[399945409,1766919033326,-150.0,0.00021918,2]
[399945410,1766919033336,-527.1,0.0002199,10]
[399945411,1766919033345,-19863.24148166,0.00022,14]
[399945412,1766919033354,-1918.56,0.00022,14]
[399945413,1766919033363,-402.90196474,0.00022019,2]
[399945414,1766919033373,-5000.0,0.00022128,2]
[399945415,1766919033382,-3322.0,0.000222,2]
[399945416,1766919033391,-278.07572473,0.00022202,2]
[399945417,1766919033402,-600.0,0.00022252,10]
[399945418,1766919033411,-402.90196474,0.00022336,2]
[399945419,1766919033421,-539.78001797,0.00022465,7]
[399945420,1766919033430,-300.0,0.00022466,2]
[399945421,1766919033439,-600.0,0.0002256,2]
[399945422,1766919033449,-402.90196474,0.00022652,2]
[399945423,1766919033458,-600.0,0.00022795,2]
[399945424,1766919033468,-160.0,0.00022815,4]
[399945425,1766919033478,-160.0,0.00022815,5]
[399945426,1766919033487,-402.90196474,0.00022968,2]
[399945427,1766919033498,-450.0,0.00023014,2]
[399945428,1766919033508,-774.16270082,0.0002303,2]
[399945429,1766919033518,-1800.0,0.00023174,2]
[399945430,1766919033527,-10000.0,0.00023242,2]
[399945431,1766919033536,-286.66355541,0.00023244,2]
[399945432,1766919033546,-1800.0,0.0002328,2]
[399945433,1766919033555,-402.90196474,0.00023285,2]
[399945434,1766919033564,-1918.56,0.000233,14]
[399945435,1766919033573,-1800.0,0.00023331,2]
[399945436,1766919033583,-200.0,0.00023433,30]
[399945437,1766919033592,-200.0,0.00023433,30]
[399945438,1766919033601,-200.0,0.00023433,30]
[399945439,1766919033610,-458507.58547995,0.000235,2]
[399945443,1766919038161,-500.0,0.00014093,2]
[399945444,1766919038171,-435.61588687,0.00014093,2]
[399945445,1766919038180,-500.0,0.00014093,2]
[399945446,1766919038189,-500.0,0.00014093,2]
[399945447,1766919038199,-500.0,0.00014093,2]
[399945448,1766919038208,-500.0,0.00014093,2]
[399945449,1766919038217,-500.0,0.00014093,2]
[399945450,1766919038226,-500.0,0.00014093,2]
[399945451,1766919038235,-500.0,0.00014093,2]
[399945452,1766919038244,-500.0,0.00014093,2]
[399945453,1766919038253,-500.0,0.00014093,2]
[399945454,1766919038263,-500.0,0.00014093,2]
[399945455,1766919038272,-500.0,0.00014093,2]
[399945456,1766919038281,-500.0,0.00014093,2]
[399945457,1766919038291,-500.0,0.00014093,2]
[399945458,1766919038300,-202.28227646,0.00014093,2]
[399945459,1766919038309,-500.0,0.00014093,2]
[399945460,1766919038324,-500.0,0.00014093,2]
[399945461,1766919038333,-51392.46194704,0.000235,2]
[399945462,1766919038346,-2790.2516653,0.000235,2]
[399945463,1766919038357,-2555.7276687,0.000235,2]
[399945464,1766919038368,-5745.74079194,0.000235,2]
[399945465,1766919038379,-1748.29487563,0.000235,2]
[399945466,1766919038390,-2741.79265226,0.000235,2]
[399945467,1766919038401,-415.64417249,0.000235,2]
[399945468,1766919038412,-2274.94824203,0.000235,2]
[399945469,1766919038423,-482.24165179,0.000235,2]
[399945491,1766919040422,-717.828,0.000235,2]
[399945498,1766919040475,-727.71476658,0.000235,2]
[399945500,1766919040487,-500.0,0.000235,2]
[399945644,1766919044438,-64127.44773162,0.000235,2]
[399945645,1766919044450,-7508.04858177,0.000235,2]